lending/lending_fUSD_20240723
["ID","MTS","AMOUNT","RATE_DAILY","PERIOD"]
[332942037,1721693437542,-2967.87,0.00010995,18]
[332942038,1721693437552,-2967.87,0.00010995,19]
[332942039,1721693437561,-1469.64,0.00010995,7]
[332942040,1721693437571,-1469.64,0.00010995,8]
[332942041,1721693437581,-1469.64,0.00010995,9]
[332942042,1721693437592,-1469.64,0.00010995,10]
[332942043,1721693437602,-1469.64,0.00010995,11]
[332942044,1721693437611,-1469.64,0.00010995,12]
[332942045,1721693437621,-1469.64,0.00010995,13]
[332942046,1721693437631,-1469.64,0.00010995,14]
[332942047,1721693437643,-1469.64,0.00010995,15]
[332942048,1721693437652,-1469.64,0.00010995,16]
[332942049,1721693437661,-1469.64,0.00010995,17]
[332942050,1721693437671,-1469.64,0.00010995,18]
[332942051,1721693437681,-186.24014637,0.00010995,19]
[332942052,1721693437693,-1283.39985363,0.00010995,19]
[332942053,1721693437702,-987.81924358,0.00010995,2]
[332942091,1721693442899,-150.0,0.00010527,2]
[332942092,1721693442909,-2476.00056047,0.00010994,3]
[332942093,1721693442920,-1323.87943953,0.00010994,3]
[332942094,1721693442929,-499.88185717,0.00010994,2]
[332942095,1721693442938,-1809.41,0.00010994,2]
[332942096,1721693442948,-1522.90075642,0.00010995,2]
[332942097,1721693442957,-1469.64,0.00010995,20]
[332942098,1721693442966,-2510.72,0.00010995,3]
[332942099,1721693442976,-2510.72,0.00010995,4]
[332942100,1721693442985,-1469.64,0.00010995,21]
[332942101,1721693442995,-2510.72,0.00010995,5]
[332942102,1721693443004,-1469.64,0.00010995,21]
[332942103,1721693443013,-2510.72,0.00010995,6]
[332942104,1721693443022,-1469.64,0.00010995,21]
[332942105,1721693443031,-765.29674059,0.00010995,7]
[332942106,1721693443092,-1745.42325941,0.00010995,7]
[332942107,1721693443102,-1469.64,0.00010995,21]
[332942108,1721693443111,-2510.72,0.00010995,8]
[332942109,1721693443120,-1469.70453431,0.00010995,21]
[332942110,1721693443130,-2510.72,0.00010995,9]
[332942111,1721693443139,-2510.72,0.00010995,10]
[332942112,1721693443148,-2510.72,0.00010995,11]
[332942113,1721693443157,-7543.16,0.00010995,4]
[332942114,1721693443167,-7543.16,0.00010995,5]
[332942115,1721693443175,-472.67152111,0.00010995,6]
[332942116,1721693443187,-7070.48847889,0.00010995,6]
[332942117,1721693443196,-7543.16,0.00010995,7]
[332942118,1721693443206,-7543.16,0.00010995,8]
[332942119,1721693443215,-4561.22896504,0.00010995,9]
[332942125,1721693443992,-346.58,0.00010994,3]
[332942126,1721693444039,-1462.83,0.00010994,3]
[332942127,1721693444048,-1809.41,0.00010994,4]
[332942128,1721693444058,-440.18319562,0.00010994,5]
[332942129,1721693444072,-1365.02159675,0.00010994,5]
[332942130,1721693444087,-4.20520763,0.00010994,5]
[332942131,1721693444098,-1809.41,0.00010994,6]
[332942132,1721693444108,-2528.0732479,0.00010995,9]
[332942133,1721693444122,-453.85778706,0.00010995,9]
[332942134,1721693444131,-2352.05509603,0.00010995,10]
[332942135,1721693444143,-548.94403522,0.00010995,10]
[332942136,1721693444170,-819.68910007,0.00010995,10]
[332942137,1721693444202,-295.58402518,0.000109,2]
[332942138,1721693444214,-2265.03206823,0.00010995,10]
[332942139,1721693444225,-1557.43970045,0.00010995,10]
[332942140,1721693444236,-7543.16,0.00010995,11]
[332942141,1721693444246,-7543.16,0.00010995,12]
[332942142,1721693444255,-6826.45,0.00010995,2]
[332942143,1721693444266,-7543.16,0.00010995,13]
[332942144,1721693444276,-6826.45,0.00010995,3]
[332942145,1721693444286,-7543.16,0.00010995,14]
[332942146,1721693444296,-6826.45,0.00010995,4]
[332942147,1721693444306,-7543.16,0.00010995,15]
[332942148,1721693444316,-6826.45,0.00010995,5]
[332942149,1721693444326,-7543.16,0.00010995,16]
[332942150,1721693444336,-6826.45,0.00010995,6]
[332942151,1721693444348,-7543.16,0.00010995,17]
[332942152,1721693444359,-6826.45,0.00010995,7]
[332942153,1721693444370,-7543.16,0.00010995,18]
[332942154,1721693444380,-3627.41,0.00010995,7]
[332942155,1721693444391,-7543.16,0.00010995,19]
[332942156,1721693444401,-6826.45,0.00010995,8]
[332942157,1721693444411,-3627.41,0.00010995,8]
[332942158,1721693444421,-6826.45,0.00010995,9]
[332942159,1721693444430,-3627.41,0.00010995,9]
[332942160,1721693444440,-6826.45,0.00010995,10]
[332942161,1721693444449,-3627.41,0.00010995,10]
[332942162,1721693444459,-6826.45,0.00010995,11]
[332942163,1721693444469,-3627.41,0.00010995,11]
[332942164,1721693444479,-3627.41,0.00010995,12]
[332942165,1721693444489,-3627.41,0.00010995,13]
[332942166,1721693444499,-3627.41,0.00010995,14]
[332942167,1721693444509,-3627.41,0.00010995,15]
[332942168,1721693444518,-3627.41,0.00010995,16]
[332942169,1721693444528,-3627.41,0.00010995,17]
[332942170,1721693444538,-3627.41,0.00010995,18]
[332942171,1721693444547,-3627.41,0.00010995,19]
[332942172,1721693444557,-3627.41,0.00010995,20]
[332942173,1721693444567,-3627.41,0.00010995,21]
[332942174,1721693444576,-3627.41,0.00010995,21]
[332942175,1721693444586,-4564.35,0.00010995,2]
[332942176,1721693444597,-3627.41,0.00010995,21]
[332942177,1721693444607,-4490.91,0.00010995,4]
[332942178,1721693444616,-4564.35,0.00010995,3]
[332942179,1721693444626,-3627.41,0.00010995,21]
[332942180,1721693444635,-4564.35,0.00010995,4]
[332942181,1721693444649,-4490.91,0.00010995,5]
[332942182,1721693444658,-4564.35,0.00010995,5]
[332942183,1721693444669,-4490.91,0.00010995,6]
[332942184,1721693444678,-4564.35,0.00010995,6]
[332942185,1721693444688,-4564.35,0.00010995,7]
[332942186,1721693444697,-3627.47410811,0.00010995,21]
[332942187,1721693444707,-4490.91,0.00010995,7]
[332942188,1721693444719,-4564.35,0.00010995,8]
[332942189,1721693444729,-4490.91,0.00010995,8]
[332942190,1721693444845,-4564.35,0.00010995,9]
[332942191,1721693444855,-4490.91,0.00010995,9]
[332942192,1721693444865,-4564.35,0.00010995,10]
[332942193,1721693444874,-4490.91,0.00010995,10]
[332942194,1721693444884,-4564.35,0.00010995,11]
[332942195,1721693444893,-4490.91,0.00010995,11]
[332942196,1721693444903,-4490.91,0.00010995,12]
[332942197,1721693444912,-4490.91,0.00010995,13]
[332942198,1721693444922,-4490.91,0.00010995,14]
[332942199,1721693444932,-4490.91,0.00010995,15]
[332942200,1721693444942,-4490.91,0.00010995,16]
[332942201,1721693444952,-4490.91,0.00010995,17]
[332942202,1721693444962,-4467.78,0.00010995,2]
[332942203,1721693444972,-4490.91,0.00010995,18]
[332942204,1721693444981,-4467.78,0.00010995,3]
[332942205,1721693444991,-4490.91,0.00010995,19]
[332942206,1721693445001,-4467.78,0.00010995,4]
[332942207,1721693445011,-4467.78,0.00010995,5]
[332942208,1721693445021,-4467.78,0.00010995,6]
[332942209,1721693445030,-4467.78,0.00010995,7]
[332942210,1721693445039,-4467.78,0.00010995,8]
[332942211,1721693445049,-4467.78,0.00010995,9]
[332942212,1721693445059,-4467.78,0.00010995,10]
[332942213,1721693445069,-4467.78,0.00010995,11]
[332942214,1721693445078,-4794.54,0.00010995,7]
[332942215,1721693445088,-4794.54,0.00010995,8]
[332942216,1721693445099,-4794.54,0.00010995,9]
[332942217,1721693445109,-4794.54,0.00010995,10]
[332942218,1721693445119,-4794.54,0.00010995,11]
[332942219,1721693445129,-2446.02,0.00010995,4]
[332942220,1721693445138,-4794.54,0.00010995,12]
[332942221,1721693445148,-2446.02,0.00010995,5]
[332942222,1721693445158,-4794.54,0.00010995,13]
[332942223,1721693445167,-2446.02,0.00010995,6]
[332942224,1721693445176,-4794.54,0.00010995,14]
[332942225,1721693445186,-896.72639477,0.00010995,7]
[332942233,1721693447203,-947.5426377,0.00010895,2]
[332942234,1721693447215,-6701.0391623,0.00010895,2]
[332942235,1721693447225,-1549.29360523,0.00010995,7]
[332942236,1721693447235,-1933.42,0.00010995,2]
[332942237,1721693447244,-4794.54,0.00010995,15]
[332942238,1721693447254,-1205.63827247,0.00010995,8]
[332942239,1721693447266,-1240.38172753,0.00010995,8]
[332942240,1721693447276,-895.78987325,0.00010995,3]
[332942241,1721693447287,-616.45468681,0.00010995,3]
[332942242,1721693447319,-421.17543994,0.00010995,3]
[332942243,1721693447329,-4794.54,0.00010995,16]
[332942244,1721693447338,-2446.02,0.00010995,9]
[332942245,1721693447349,-1933.42,0.00010995,4]
[332942246,1721693447358,-4794.54,0.00010995,17]
[332942247,1721693447368,-2446.02,0.00010995,10]
[332942248,1721693447377,-1933.42,0.00010995,5]
[332942249,1721693447387,-4794.54,0.00010995,18]
[332942250,1721693447397,-2446.02,0.00010995,11]
[332942251,1721693447406,-1933.42,0.00010995,6]
[332942252,1721693447415,-2853.4959457,0.00010995,19]
[332942253,1721693447431,-976.20732012,0.00010995,19]
[332942254,1721693447454,-747.85523931,0.00010995,19]
[332942255,1721693448599,-216.98149487,0.00010995,19]
[332942256,1721693448610,-2319.22743506,0.00010995,12]
[332942257,1721693448622,-126.79256494,0.00010995,12]
[332942258,1721693448633,-1771.4412455,0.00010995,7]
[332942259,1721693448648,-161.9787545,0.00010995,7]
[332942260,1721693448659,-3337.89376783,0.00010995,20]
[332942261,1721693448672,-1456.64623217,0.00010995,20]
[332942262,1721693448682,-2446.02,0.00010995,13]
[332942263,1721693448692,-1933.42,0.00010995,8]
[332942264,1721693448702,-4794.54,0.00010995,21]
[332942265,1721693448711,-2446.02,0.00010995,14]
[332942266,1721693448721,-1933.42,0.00010995,9]
[332942267,1721693448731,-4794.54,0.00010995,21]
[332942268,1721693448741,-4794.54,0.00010995,21]
[332942269,1721693448751,-2446.02,0.00010995,15]
[332942270,1721693448763,-1933.42,0.00010995,10]
[332942271,1721693448772,-2446.02,0.00010995,16]
[332942272,1721693448782,-4794.54,0.00010995,21]
[332942273,1721693448792,-1933.42,0.00010995,11]
[332942274,1721693448803,-2446.02,0.00010995,17]
[332942275,1721693448815,-4794.61219871,0.00010995,21]
[332942276,1721693448825,-2446.02,0.00010995,18]
[332942277,1721693448836,-2446.02,0.00010995,19]
[332942278,1721693448848,-5087.58,0.00010995,2]
[332942279,1721693448859,-5087.58,0.00010995,3]
[332942280,1721693448870,-5087.58,0.00010995,4]
[332942281,1721693448881,-5087.58,0.00010995,5]
[332942282,1721693448892,-5087.58,0.00010995,6]
[332942283,1721693448902,-5087.58,0.00010995,7]
[332942284,1721693448913,-5087.58,0.00010995,8]
[332942285,1721693448924,-5087.58,0.00010995,9]
[332942286,1721693448933,-5087.58,0.00010995,10]
[332942287,1721693448943,-5087.58,0.00010995,11]
[332942288,1721693448954,-4758.56,0.00010995,4]
[332942289,1721693448964,-4758.56,0.00010995,5]
[332942290,1721693448975,-4758.56,0.00010995,6]
[332942291,1721693448986,-4758.56,0.00010995,7]
[332942292,1721693448997,-4758.56,0.00010995,8]
[332942293,1721693449007,-1428.72,0.00010995,7]
[332942294,1721693449018,-4758.56,0.00010995,9]
[332942295,1721693449028,-4758.56,0.00010995,10]
[332942296,1721693449039,-4758.56,0.00010995,11]
[332942297,1721693449049,-1428.72,0.00010995,8]
[332942298,1721693449058,-4758.56,0.00010995,12]
[332942299,1721693449069,-1428.72,0.00010995,9]
[332942300,1721693449081,-4758.56,0.00010995,13]
[332942301,1721693449091,-4758.56,0.00010995,14]
[332942302,1721693449105,-4758.56,0.00010995,15]
[332942303,1721693449116,-4758.56,0.00010995,16]
[332942304,1721693449127,-4758.56,0.00010995,17]
[332942305,1721693449138,-1428.72,0.00010995,10]
[332942306,1721693449149,-4758.56,0.00010995,18]
[332942307,1721693449159,-4758.56,0.00010995,19]
[332942308,1721693449170,-1428.72,0.00010995,11]
[332942309,1721693449180,-500.0,0.00010995,2]
[332942310,1721693449191,-1428.72,0.00010995,12]
[332942311,1721693449202,-500.0,0.00010995,3]
[332942312,1721693449212,-1428.72,0.00010995,13]
[332942313,1721693449409,-15292.33,0.00010995,2]
[332942314,1721693449425,-500.0,0.00010995,4]
[332942315,1721693449436,-1428.72,0.00010995,14]
[332942316,1721693449447,-15292.33,0.00010995,3]
[332942317,1721693449458,-500.0,0.00010995,5]
[332942318,1721693449469,-1428.72,0.00010995,15]
[332942319,1721693449479,-15292.33,0.00010995,4]
[332942320,1721693449490,-500.0,0.00010995,6]
[332942321,1721693449501,-1428.72,0.00010995,16]
[332942322,1721693449511,-15292.33,0.00010995,5]
[332942323,1721693449523,-500.0,0.00010995,7]
[332942324,1721693449534,-1428.72,0.00010995,17]
[332942325,1721693449545,-15292.33,0.00010995,6]
[332942326,1721693449555,-500.0,0.00010995,8]
[332942327,1721693449566,-1428.72,0.00010995,18]
[332942328,1721693449576,-15292.33,0.00010995,7]
[332942329,1721693449587,-500.0,0.00010995,9]
[332942330,1721693449600,-15292.33,0.00010995,8]
[332942331,1721693449611,-1428.72,0.00010995,19]
[332942332,1721693449622,-500.0,0.00010995,10]
[332942333,1721693449635,-15292.33,0.00010995,9]
[332942334,1721693449650,-500.0,0.00010995,11]
[332942335,1721693449660,-15292.33,0.00010995,10]
[332942336,1721693449671,-15292.33,0.00010995,11]
[332942337,1721693449683,-3559.76,0.00010995,4]
[332942338,1721693449694,-3559.76,0.00010995,5]
[332942339,1721693449703,-3559.76,0.00010995,6]
[332942340,1721693449715,-3559.76,0.00010995,7]
[332942341,1721693449726,-3559.76,0.00010995,8]
[332942342,1721693449735,-3216.41,0.00010995,2]
[332942343,1721693449745,-3559.76,0.00010995,9]
[332942344,1721693449755,-3216.41,0.00010995,3]
[332942345,1721693449764,-3559.76,0.00010995,10]
[332942346,1721693449774,-3559.76,0.00010995,11]
[332942347,1721693449783,-1428.72,0.00010995,20]
[332942348,1721693449792,-1428.72,0.00010995,21]
[332942349,1721693449802,-1428.72,0.00010995,21]
[332942350,1721693449813,-1428.72,0.00010995,21]
[332942351,1721693449822,-1428.72,0.00010995,21]
[332942352,1721693449832,-1428.94,0.00010995,21]
[332942353,1721693449842,-3216.41,0.00010995,4]
[332942354,1721693449857,-3216.41,0.00010995,5]
[332942355,1721693449867,-3216.41,0.00010995,6]
[332942356,1721693449878,-3559.76,0.00010995,12]
[332942357,1721693449888,-3216.41,0.00010995,7]
[332942358,1721693449898,-3559.76,0.00010995,13]
[332942359,1721693449908,-3216.41,0.00010995,8]
[332942360,1721693449917,-3559.76,0.00010995,14]
[332942361,1721693449927,-3559.76,0.00010995,15]
[332942362,1721693449937,-3216.41,0.00010995,9]
[332942363,1721693449946,-3559.76,0.00010995,16]
[332942364,1721693449955,-3216.41,0.00010995,10]
[332942365,1721693449965,-3559.76,0.00010995,17]
[332942366,1721693449974,-3216.41,0.00010995,11]
[332942367,1721693449983,-3559.76,0.00010995,18]
[332942368,1721693449993,-3559.76,0.00010995,19]
[332942369,1721693450002,-500.0,0.00010995,7]
[332942370,1721693450012,-500.0,0.00010995,8]
[332942371,1721693450021,-500.0,0.00010995,9]
[332942372,1721693450031,-500.0,0.00010995,10]
[332942373,1721693450040,-500.0,0.00010995,11]
[332942374,1721693450049,-500.0,0.00010995,12]
[332942375,1721693450059,-500.0,0.00010995,13]
[332942376,1721693450068,-4215.57,0.00010995,4]
[332942377,1721693450078,-4215.57,0.00010995,5]
[332942378,1721693450087,-4215.57,0.00010995,6]
[332942379,1721693450099,-13903.48,0.00010995,2]
[332942380,1721693450109,-4215.57,0.00010995,7]
[332942381,1721693450119,-13903.48,0.00010995,3]
[332942382,1721693450129,-4215.57,0.00010995,8]
[332942383,1721693450138,-3249.03624742,0.00010995,9]
[332942384,1721693450926,-605.67764587,0.00010995,9]
[332942385,1721693450939,-360.85610671,0.00010995,9]
[332942386,1721693450950,-13903.48,0.00010995,4]
[332942387,1721693450960,-4215.57,0.00010995,10]
[332942388,1721693450970,-4215.57,0.00010995,11]
[332942389,1721693450980,-4215.57,0.00010995,12]
[332942390,1721693450990,-3939.72,0.00010995,2]
[332942391,1721693451000,-3421.43,0.00010995,7]
[332942392,1721693451010,-3939.72,0.00010995,3]
[332942393,1721693451020,-4215.57,0.00010995,13]
[332942394,1721693451030,-13903.48,0.00010995,5]
[332942395,1721693451040,-3421.43,0.00010995,8]
[332942396,1721693451050,-4215.57,0.00010995,14]
[332942397,1721693451059,-3939.72,0.00010995,4]
[332942398,1721693451068,-3421.43,0.00010995,9]
[332942399,1721693451078,-4215.57,0.00010995,15]
[332942400,1721693451088,-13903.48,0.00010995,6]
[332942401,1721693451098,-3939.72,0.00010995,5]
[332942402,1721693451108,-3421.43,0.00010995,10]
[332942403,1721693451117,-4215.57,0.00010995,16]
[332942404,1721693451128,-13903.48,0.00010995,7]
[332942405,1721693451138,-3939.72,0.00010995,6]
[332942406,1721693451147,-3421.43,0.00010995,11]
[332942407,1721693451157,-3939.72,0.00010995,7]
[332942408,1721693451166,-13903.48,0.00010995,8]
[332942409,1721693451176,-3421.43,0.00010995,12]
[332942410,1721693451186,-3939.72,0.00010995,8]
[332942411,1721693451196,-13903.48,0.00010995,9]
[332942412,1721693451206,-3421.43,0.00010995,13]
[332942413,1721693451216,-4215.57,0.00010995,17]
[332942414,1721693451226,-3939.72,0.00010995,9]
[332942415,1721693451236,-13903.48,0.00010995,10]
[332942416,1721693451245,-3421.43,0.00010995,14]
[332942417,1721693451255,-4215.57,0.00010995,18]
[332942418,1721693451265,-3939.72,0.00010995,10]
[332942419,1721693451276,-13903.48,0.00010995,11]
[332942420,1721693451286,-3421.43,0.00010995,15]
[332942421,1721693451296,-4215.57,0.00010995,19]
[332942422,1721693451306,-3939.72,0.00010995,11]
[332942423,1721693451316,-3421.43,0.00010995,16]
[332942424,1721693451326,-3421.43,0.00010995,17]
[332942425,1721693451337,-3421.43,0.00010995,18]
[332942426,1721693451347,-3421.43,0.00010995,19]
[332942427,1721693451357,-3421.43,0.00010995,20]
[332942428,1721693451368,-500.0,0.00010995,14]
[332942429,1721693451378,-3421.43,0.00010995,21]
[332942430,1721693451388,-3421.43,0.00010995,21]
[332942431,1721693451398,-3421.43,0.00010995,21]
[332942432,1721693451408,-500.0,0.00010995,15]
[332942433,1721693451418,-3421.43,0.00010995,21]
[332942434,1721693451428,-500.0,0.00010995,16]
[332942435,1721693451438,-3421.49690616,0.00010995,21]
[332942436,1721693451448,-500.0,0.00010995,17]
[332942437,1721693451458,-500.0,0.00010995,18]
[332942438,1721693451468,-500.0,0.00010995,19]
[332942439,1721693451477,-500.0,0.00010995,20]
[332942440,1721693451487,-228.2788865,0.00010995,21]
[332942441,1721693451497,-500.0,0.00010995,4]
[332942442,1721693451506,-500.0,0.00010995,5]
[332942443,1721693451515,-500.0,0.00010995,6]
[332942444,1721693451525,-500.0,0.00010995,7]
[332942445,1721693451535,-500.0,0.00010995,8]
[332942446,1721693451544,-500.0,0.00010995,9]
[332942447,1721693451554,-2800.47,0.00010995,2]
[332942448,1721693451564,-500.0,0.00010995,10]
[332942449,1721693451574,-2800.47,0.00010995,2]
[332942450,1721693451583,-3274.79,0.00010995,7]
[332942451,1721693451593,-500.0,0.00010995,11]
[332942452,1721693451606,-2800.47,0.00010995,2]
[332942453,1721693451616,-2874.85,0.00010995,7]
[332942454,1721693452065,-500.0,0.00010995,12]
[332942455,1721693452102,-2800.47,0.00010995,2]
[332942456,1721693452112,-3274.79,0.00010995,8]
[332942457,1721693452121,-339.51548421,0.00010995,8]
[332942458,1721693452135,-1366.5483801,0.00010995,8]
[332942459,1721693452146,-1168.78613569,0.00010995,8]
[332942460,1721693452155,-186.93669031,0.00010995,13]
[332942461,1721693452167,-313.06330969,0.00010995,13]
[332942462,1721693452177,-290.05976315,0.00010995,2]
[332942464,1721693575025,-1000.0,0.00010995,21]
[332942465,1721693758663,199.81,8.219e-05,2]
[332942469,1721694156747,150.0,8.954e-05,2]
[332942470,1721694157083,150.0,8.838e-05,2]
[332942475,1721694276885,150.0,8.967e-05,2]
[332942476,1721694277078,150.0,8.331e-05,2]
[332942477,1721694277229,150.0,8.414e-05,2]
[332942478,1721694277292,9050.19,8.838e-05,2]
[332942479,1721694277313,949.81,8.838e-05,2]
[332942480,1721694277829,150.0,8.795e-05,2]
[332942481,1721694277857,150.0,8.333e-05,2]
[332942482,1721694277889,150.0,8.493e-05,2]
[332942483,1721694277937,150.0,8.336e-05,2]
[332942484,1721694278042,150.0,8.489e-05,2]
[332942485,1721694278075,150.0,8.603e-05,2]
[332942486,1721694278114,150.0,8.679e-05,2]
[332942487,1721694278141,150.0,8.644e-05,2]
[332942488,1721694278239,150.0,8.117e-05,2]
[332942489,1721694278288,150.0,8.993e-05,2]
[332942490,1721694278317,150.0,8.478e-05,2]
[332942491,1721694278474,150.0,8.818e-05,2]
[332942492,1721694278582,150.0,8.8e-05,2]
[332942493,1721694278678,150.0,8.333e-05,2]
[332942494,1721694278715,150.0,8.738e-05,2]
[332942495,1721694278768,150.0,8.591e-05,2]
[332942496,1721694278945,150.0,8.666e-05,2]
[332942497,1721694279010,150.0,8.349e-05,2]
[332942498,1721694279380,150.0,8.891e-05,2]
[332942499,1721694279548,150.0,8.371e-05,2]
[332942500,1721694279770,150.0,8.786e-05,2]
[332942501,1721694318980,189.81,8.219e-05,2]
[332942504,1721694395906,150.0,7.716e-05,2]
[332942521,1721694454339,150.0,7.839e-05,2]
[332942522,1721694454506,150.0,9.018e-05,2]
[332942526,1721694514724,-150.0,9.054e-05,2]
[332942527,1721694514746,-150.0,9.082e-05,2]
[332942528,1721694514769,-150.0,9.106e-05,2]
[332942529,1721694514790,-1961.68,9.133e-05,2]
[332942530,1721694514885,150.0,8.948e-05,2]
[332942531,1721694514965,150.0,8.206e-05,2]
[332942532,1721694515017,150.0,7.734e-05,2]
[332942533,1721694515072,150.0,9.002e-05,2]
[332942540,1721694548030,-2248.7,9.141e-05,2]
[332942544,1721694594323,10000.0,9.002e-05,2]
[332942545,1721694594344,10000.0,9.002e-05,2]
[332942546,1721694594370,10000.0,9.002e-05,2]
[332942561,1721694632550,-2139.85,9.141e-05,2]
[332942562,1721694632562,-150.0,9.142e-05,2]
[332942563,1721694632573,-213.18,9.155e-05,2]
[332942564,1721694632582,-176.55,9.155e-05,2]
[332942565,1721694632592,-1000.0,9.16e-05,2]
[332942566,1721694632602,-150.0,9.182e-05,2]
[332942567,1721694632612,-150.0,9.233e-05,2]
[332942568,1721694632621,-150.0,9.294e-05,2]
[332942569,1721694632631,-150.0,9.307e-05,2]
[332942570,1721694632640,-103.00301081,9.324e-05,2]
[332942571,1721694632653,-46.99698919,9.324e-05,2]
[332942572,1721694632662,-150.0,9.381e-05,2]
[332942573,1721694632672,-150.0,9.388e-05,2]
[332942574,1721694632681,-150.0,9.414e-05,2]
[332942575,1721694632691,-150.0,9.432e-05,2]
[332942576,1721694632700,-150.0,9.434e-05,2]
[332942577,1721694632710,-150.0,9.44e-05,2]
[332942578,1721694632720,-150.0,9.444e-05,2]
[332942579,1721694632730,-150.0,9.495e-05,2]
[332942580,1721694632739,-150.0,9.499e-05,2]
[332942581,1721694632750,-150.0,9.502e-05,2]
[332942582,1721694632759,-150.0,9.52e-05,2]
[332942583,1721694632770,-150.0,9.54e-05,2]
[332942584,1721694632781,-150.0,9.563e-05,2]
[332942585,1721694632791,-150.0,9.591e-05,2]
[332942586,1721694632800,-150.0,9.617e-05,2]
[332942587,1721694632810,-150.0,9.634e-05,2]
[332942588,1721694632819,-150.0,9.634e-05,2]
[332942589,1721694632829,-150.0,9.652e-05,2]
[332942590,1721694632839,-500.0,9.655e-05,2]
[332942591,1721694632848,-150.0,9.73e-05,2]
[332942592,1721694632858,-150.0,9.745e-05,2]
[332942593,1721694632868,-150.0,9.757e-05,2]
[332942594,1721694632877,-150.0,9.78e-05,2]
[332942595,1721694632887,-195.72,9.782e-05,2]
[332942596,1721694632897,-150.0,9.812e-05,2]
[332942597,1721694632907,-150.0,9.825e-05,2]
[332942598,1721694632916,-150.0,9.853e-05,2]
[332942599,1721694632925,-150.0,9.854e-05,2]
[332942600,1721694632935,-150.0,9.859e-05,2]
[332942601,1721694632944,-150.0,9.95e-05,2]
[332942602,1721694632955,-150.0,9.976e-05,2]
[332942603,1721694632964,-150.0,9.983e-05,2]
[332942604,1721694632973,-150.0,9.996e-05,2]
[332942605,1721694632983,-212.88674161,0.0001,2]
[332942606,1721694632992,-64.06894554,0.00010041,2]
[332942607,1721694633139,-85.93105446,0.00010041,2]
[332942608,1721694633149,-833.54,0.00010041,2]
[332942609,1721694633159,-420.11,0.00010041,2]
[332942610,1721694633169,-150.0,0.00010166,2]
[332942611,1721694633178,-150.0,0.00010178,2]
[332942612,1721694633188,-150.0,0.00010178,2]
[332942613,1721694633198,-150.0,0.00010178,2]
[332942614,1721694633207,-150.0,0.00010178,2]
[332942615,1721694633216,-150.0,0.00010178,2]
[332942616,1721694633226,-165.28,0.00010178,2]
[332942617,1721694633235,-721.83,0.00010178,2]
[332942618,1721694633244,-165.28,0.00010178,2]
[332942619,1721694633254,-355.75,0.00010178,2]
[332942620,1721694633264,-150.0,0.00010178,2]
[332942621,1721694633273,-165.28,0.00010178,2]
[332942622,1721694633283,-355.75,0.00010178,2]
[332942623,1721694633293,-150.0,0.00010178,2]
[332942624,1721694633302,-150.0,0.00010197,2]
[332942625,1721694633312,-150.0,0.0001021,2]
[332942626,1721694633322,-150.0,0.00010218,2]
[332942627,1721694633331,-170.24,0.00010247,2]
[332942628,1721694633342,-150.0,0.00010263,2]
[332942629,1721694633351,-150.0,0.00010264,2]
[332942630,1721694633361,-150.0,0.00010267,2]
[332942631,1721694633370,-150.0,0.00010282,2]
[332942632,1721694633380,-355.75,0.00010301,2]
[332942633,1721694633390,-150.0,0.00010301,2]
[332942634,1721694633400,-355.75,0.00010301,2]
[332942635,1721694633410,-150.0,0.00010301,2]
[332942636,1721694633420,-150.0,0.00010301,2]
[332942637,1721694633429,-355.75,0.00010301,2]